[Event "Titled Tuesday Blitz November 29 Early 2022"]
[White "Eynullayev, Atilla"]
[Black "Pakleza, Zbigniew"]
[WhiteFideId "13413570"]
[BlackFideId "1119290"]
[WhiteElo "2181"]
[BlackElo "2411"]
[Result "1-0"]
[Round "06"]
[TimeControl "180+1"]
[Date "2022.11.30"]
[WhiteClock "0:00:28"]
[BlackClock "0:00:02"]

1. e4 {[%clk 0:03:00]}  d6 {[%clk 0:02:58]} 2. d4 {[%clk 0:02:58]}  Nf6 {[%clk 0:02:58]} 3. Nc3 {[%clk 0:02:58]}  c6 {[%clk 0:02:58]} 4. Bg5 {[%clk 0:02:54]}  Qb6 {[%clk 0:02:58]} 5. Rb1 {[%clk 0:02:52]}  e5 {[%clk 0:02:55]} 6. Be3 {[%clk 0:02:48]}  Ng4 {[%clk 0:02:50]} 7. Nf3 {[%clk 0:02:40]}  Nd7 {[%clk 0:02:42]} 8. Bc4 {[%clk 0:02:40]}  Be7 {[%clk 0:02:40]} 9. O-O {[%clk 0:02:40]}  O-O {[%clk 0:02:39]} 10. Bc1 {[%clk 0:02:26]}  Qc7 {[%clk 0:02:32]} 11. h3 {[%clk 0:02:27]}  Ngf6 {[%clk 0:02:32]} 12. a4 {[%clk 0:02:27]}  a6 {[%clk 0:02:32]} 13. b4 {[%clk 0:02:08]}  b5 {[%clk 0:02:30]} 14. Ba2 {[%clk 0:02:08]}  h6 {[%clk 0:02:21]} 15. Be3 {[%clk 0:01:58]}  Re8 {[%clk 0:02:17]} 16. Qd2 {[%clk 0:01:51]}  Bf8 {[%clk 0:02:15]} 17. Rfe1 {[%clk 0:01:47]}  exd4 {[%clk 0:01:57]} 18. Bxd4 {[%clk 0:01:47]}  Ne5 {[%clk 0:01:56]} 19. Nxe5 {[%clk 0:01:32]}  dxe5 {[%clk 0:01:57]} 20. Be3 {[%clk 0:01:33]}  Be6 {[%clk 0:01:49]} 21. Bxe6 {[%clk 0:01:30]}  Rxe6 {[%clk 0:01:50]} 22. a5 {[%clk 0:01:31]}  Rd8 {[%clk 0:01:35]} 23. Qe2 {[%clk 0:01:30]}  c5 {[%clk 0:01:35]} 24. Nd5 {[%clk 0:01:03]}  Nxd5 {[%clk 0:01:32]} 25. exd5 {[%clk 0:01:03]}  Rxd5 {[%clk 0:01:33]} 26. c4 {[%clk 0:01:04]}  bxc4 {[%clk 0:00:47]} 27. Qxc4 {[%clk 0:01:05]}  Rd7 {[%clk 0:00:48]} 28. bxc5 {[%clk 0:00:59]}  Qxa5 {[%clk 0:00:39]} 29. Rec1 {[%clk 0:00:50]}  Rc6 {[%clk 0:00:24]} 30. Qe4 {[%clk 0:00:45]}  Qc7 {[%clk 0:00:21]} 31. Rb6 {[%clk 0:00:41]}  Rxc5 {[%clk 0:00:03]} 32. Bxc5 {[%clk 0:00:29]}  Bxc5 {[%clk 0:00:03]} 33. Rc6 {[%clk 0:00:29]}  Bxf2+ {[%clk 0:00:02]} 34. Kxf2 {[%clk 0:00:28]} 1-0


[Site "https://www.chess.com"]

[Event "Titled Tuesday Blitz November 29 Early 2022"]
[White "Fawzy, Adham"]
[Black "Ilkhomi, Jaloliddin"]
[WhiteFideId "10613129"]
[BlackFideId "14700948"]
[WhiteElo "2541"]
[BlackElo "2045"]
[Result "0-1"]
[Round "06"]
[TimeControl "180+1"]
[Date "2022.11.30"]
[WhiteClock "0:00:02"]
[BlackClock "0:00:06"]

1. e4 {[%clk 0:03:00]}  e6 {[%clk 0:02:58]} 2. d4 {[%clk 0:03:00]}  d5 {[%clk 0:02:57]} 3. Nd2 {[%clk 0:03:01]}  Nf6 {[%clk 0:02:57]} 4. e5 {[%clk 0:03:01]}  Nfd7 {[%clk 0:02:58]} 5. Bd3 {[%clk 0:03:02]}  c5 {[%clk 0:02:58]} 6. c3 {[%clk 0:03:02]}  Nc6 {[%clk 0:02:59]} 7. Ne2 {[%clk 0:03:02]}  cxd4 {[%clk 0:03:00]} 8. cxd4 {[%clk 0:03:03]}  f6 {[%clk 0:03:00]} 9. exf6 {[%clk 0:03:03]}  Qxf6 {[%clk 0:03:01]} 10. Nf3 {[%clk 0:01:50]}  h6 {[%clk 0:02:59]} 11. O-O {[%clk 0:01:47]}  Bd6 {[%clk 0:02:59]} 12. Be3 {[%clk 0:01:41]}  O-O {[%clk 0:02:59]} 13. Rc1 {[%clk 0:01:39]}  Rf7 {[%clk 0:02:59]} 14. Bb5 {[%clk 0:01:31]}  Ndb8 {[%clk 0:02:16]} 15. Ng3 {[%clk 0:01:27]}  a6 {[%clk 0:02:02]} 16. Nh5 {[%clk 0:01:08]}  Qg6 {[%clk 0:01:54]} 17. Ne5 {[%clk 0:01:07]}  Nxe5 {[%clk 0:01:47]} 18. Rxc8+ {[%clk 0:01:07]}  Rf8 {[%clk 0:01:37]} 19. dxe5 {[%clk 0:01:04]}  axb5 {[%clk 0:01:08]} 20. Nf4 {[%clk 0:01:04]}  Qf7 {[%clk 0:01:08]} 21. Qc2 {[%clk 0:00:54]}  Bxe5 {[%clk 0:00:18]} 22. Rxf8+ {[%clk 0:00:53]}  Qxf8 {[%clk 0:00:18]} 23. Ng6 {[%clk 0:00:53]}  Qf6 {[%clk 0:00:19]} 24. Qc8+ {[%clk 0:00:43]}  Kf7 {[%clk 0:00:17]} 25. Nh8+ {[%clk 0:00:37]}  Ke7 {[%clk 0:00:17]} 26. Bc5+ {[%clk 0:00:32]}  Bd6 {[%clk 0:00:15]} 27. Qc7+ {[%clk 0:00:31]}  Nd7 {[%clk 0:00:13]} 28. Qxd6+ {[%clk 0:00:28]}  Ke8 {[%clk 0:00:11]} 29. Ng6 {[%clk 0:00:20]}  Nxc5 {[%clk 0:00:10]} 30. Ne5 {[%clk 0:00:17]}  Ne4 {[%clk 0:00:06]} 31. Qd7+ {[%clk 0:00:16]}  Kf8 {[%clk 0:00:06]} 32. Qxb7 {[%clk 0:00:15]}  Rd8 {[%clk 0:00:06]} 33. Nd7+ {[%clk 0:00:15]}  Rxd7 {[%clk 0:00:07]} 34. Qxd7 {[%clk 0:00:16]}  Qe5 {[%clk 0:00:06]} 35. Qc8+ {[%clk 0:00:15]}  Kf7 {[%clk 0:00:06]} 36. Qc2 {[%clk 0:00:15]}  Kg8 {[%clk 0:00:06]} 37. Re1 {[%clk 0:00:13]}  Qd4 {[%clk 0:00:07]} 38. Rd1 {[%clk 0:00:10]}  Qb6 {[%clk 0:00:06]} 39. Kf1 {[%clk 0:00:08]}  b4 {[%clk 0:00:07]} 40. Qe2 {[%clk 0:00:08]}  b3 {[%clk 0:00:06]} 41. axb3 {[%clk 0:00:07]}  Qxb3 {[%clk 0:00:07]} 42. f3 {[%clk 0:00:07]}  Nc5 {[%clk 0:00:08]} 43. Rc1 {[%clk 0:00:06]}  Qb4 {[%clk 0:00:07]} 44. Qe1 {[%clk 0:00:04]}  Qb5+ {[%clk 0:00:07]} 45. Qe2 {[%clk 0:00:04]}  Qb4 {[%clk 0:00:05]} 46. Qc2 {[%clk 0:00:04]}  Nb3 {[%clk 0:00:03]} 47. Qc8+ {[%clk 0:00:03]}  Kh7 {[%clk 0:00:03]} 48. Qc2+ {[%clk 0:00:03]}  Kg8 {[%clk 0:00:04]} 49. Rd1 {[%clk 0:00:03]}  Qb5+ {[%clk 0:00:04]} 50. Qe2 {[%clk 0:00:03]}  Qb6 {[%clk 0:00:05]} 51. Rd3 {[%clk 0:00:01]}  Nd4 {[%clk 0:00:05]} 52. Qe3 {[%clk 0:00:01]}  e5 {[%clk 0:00:06]} 53. Qxe5 {[%clk 0:00:01]}  Qxb2 {[%clk 0:00:06]} 54. Qxd5+ {[%clk 0:00:01]}  Ne6 {[%clk 0:00:06]} 55. Qd4 {[%clk 0:00:02]}  Nxd4 {[%clk 0:00:06]} 0-1


[Site "https://www.chess.com"]

[Event "Titled Tuesday Blitz November 29 Early 2022"]
[White "Floresvillar Gonzalez, Luis Migu"]
[Black "De Souza, Cristiano Gomes"]
[WhiteFideId "5100542"]
[BlackFideId "2151758"]
[WhiteElo "2040"]
[BlackElo "2068"]
[Result "1-0"]
[Round "06"]
[TimeControl "180+1"]
[Date "2022.11.30"]
[WhiteClock "0:01:03"]
[BlackClock "0:01:30"]

1. e4 {[%clk 0:03:00]}  c5 {[%clk 0:02:56]} 2. d4 {[%clk 0:02:58]}  cxd4 {[%clk 0:02:54]} 3. c3 {[%clk 0:02:58]}  dxc3 {[%clk 0:02:54]} 4. Nxc3 {[%clk 0:02:58]}  Nc6 {[%clk 0:02:54]} 5. Bc4 {[%clk 0:02:57]}  a6 {[%clk 0:02:54]} 6. Nf3 {[%clk 0:02:56]}  e6 {[%clk 0:02:55]} 7. Qe2 {[%clk 0:02:54]}  Nge7 {[%clk 0:02:54]} 8. Bg5 {[%clk 0:02:52]}  f6 {[%clk 0:02:53]} 9. Be3 {[%clk 0:02:51]}  Ng6 {[%clk 0:02:54]} 10. h4 {[%clk 0:02:46]}  Bb4 {[%clk 0:02:46]} 11. h5 {[%clk 0:02:42]}  Nge5 {[%clk 0:02:45]} 12. Nxe5 {[%clk 0:02:23]}  Nxe5 {[%clk 0:02:43]} 13. Bb3 {[%clk 0:02:23]}  O-O {[%clk 0:02:37]} 14. h6 {[%clk 0:02:22]}  g6 {[%clk 0:02:34]} 15. f4 {[%clk 0:02:19]}  Nc6 {[%clk 0:02:31]} 16. O-O-O {[%clk 0:02:18]}  Bxc3 {[%clk 0:02:28]} 17. bxc3 {[%clk 0:02:18]}  Qe7 {[%clk 0:02:26]} 18. f5 {[%clk 0:02:08]}  Na5 {[%clk 0:02:23]} 19. fxg6 {[%clk 0:02:01]}  Nxb3+ {[%clk 0:02:21]} 20. axb3 {[%clk 0:02:00]}  Qa3+ {[%clk 0:02:14]} 21. Kc2 {[%clk 0:01:44]}  Qa2+ {[%clk 0:02:12]} 22. Kd3 {[%clk 0:01:36]}  Qxe2+ {[%clk 0:02:11]} 23. Kxe2 {[%clk 0:01:34]}  hxg6 {[%clk 0:02:11]} 24. h7+ {[%clk 0:01:27]}  Kh8 {[%clk 0:02:11]} 25. g4 {[%clk 0:01:27]}  Rf7 {[%clk 0:02:11]} 26. Rh6 {[%clk 0:01:24]}  Rxh7 {[%clk 0:02:08]} 27. Rxg6 {[%clk 0:01:22]}  Rh2+ {[%clk 0:01:39]} 28. Kd3 {[%clk 0:01:21]}  d5 {[%clk 0:01:37]} 29. Rxf6 {[%clk 0:01:16]}  Kh7 {[%clk 0:01:32]} 30. Rf7+ {[%clk 0:01:03]}  Kg6 {[%clk 0:01:30]} 31. Rdf1 {[%clk 0:01:03]} 1-0


[Site "https://www.chess.com"]

[Event "Titled Tuesday Blitz November 29 Early 2022"]
[White "Fromm, Marius"]
[Black "Zemlyanskii, Ivan"]
[WhiteFideId "12993190"]
[BlackFideId "24249971"]
[WhiteElo "2325"]
[BlackElo "2107"]
[Result "0-1"]
[Round "06"]
[TimeControl "180+1"]
[Date "2022.11.30"]
[WhiteClock "0:00:02"]
[BlackClock "0:00:18"]

1. e4 {[%clk 0:03:00]}  c5 {[%clk 0:02:59]} 2. Nf3 {[%clk 0:03:00]}  d6 {[%clk 0:02:59]} 3. d4 {[%clk 0:03:01]}  cxd4 {[%clk 0:03:00]} 4. Nxd4 {[%clk 0:03:01]}  Nf6 {[%clk 0:03:00]} 5. Nc3 {[%clk 0:03:02]}  a6 {[%clk 0:03:00]} 6. g3 {[%clk 0:03:03]}  e5 {[%clk 0:02:59]} 7. Nde2 {[%clk 0:03:04]}  Be7 {[%clk 0:02:58]} 8. Bg2 {[%clk 0:03:04]}  O-O {[%clk 0:02:56]} 9. O-O {[%clk 0:03:04]}  b5 {[%clk 0:02:56]} 10. Nd5 {[%clk 0:03:04]}  Nxd5 {[%clk 0:02:50]} 11. Qxd5 {[%clk 0:03:05]}  Ra7 {[%clk 0:02:49]} 12. Be3 {[%clk 0:03:05]}  Be6 {[%clk 0:02:47]} 13. Qd3 {[%clk 0:03:04]}  Rb7 {[%clk 0:02:44]} 14. b3 {[%clk 0:03:05]}  Nd7 {[%clk 0:02:41]} 15. Nc3 {[%clk 0:03:04]}  Rc7 {[%clk 0:02:38]} 16. Nd5 {[%clk 0:02:52]}  Bxd5 {[%clk 0:02:30]} 17. Qxd5 {[%clk 0:02:52]}  Rxc2 {[%clk 0:02:29]} 18. a4 {[%clk 0:02:41]}  bxa4 {[%clk 0:02:22]} 19. Rxa4 {[%clk 0:02:42]}  Nc5 {[%clk 0:02:20]} 20. Qd1 {[%clk 0:02:22]}  Rb2 {[%clk 0:01:56]} 21. Bxc5 {[%clk 0:01:55]}  dxc5 {[%clk 0:01:56]} 22. Rxa6 {[%clk 0:01:49]}  Rd2 {[%clk 0:01:21]} 23. Qa1 {[%clk 0:01:31]}  Qb8 {[%clk 0:01:08]} 24. Ra2 {[%clk 0:01:02]}  Rd4 {[%clk 0:01:05]} 25. Qc3 {[%clk 0:00:59]}  Rfd8 {[%clk 0:01:04]} 26. Rb2 {[%clk 0:00:33]}  Qb6 {[%clk 0:00:52]} 27. Re1 {[%clk 0:00:23]}  Bg5 {[%clk 0:00:51]} 28. Rf1 {[%clk 0:00:13]}  Bd2 {[%clk 0:00:49]} 29. Qc2 {[%clk 0:00:12]}  Bb4 {[%clk 0:00:41]} 30. Bf3 {[%clk 0:00:09]}  g6 {[%clk 0:00:32]} 31. Kg2 {[%clk 0:00:04]}  Rd2 {[%clk 0:00:30]} 32. Qc1 {[%clk 0:00:04]}  R2d3 {[%clk 0:00:21]} 33. Rd1 {[%clk 0:00:04]}  Qb7 {[%clk 0:00:17]} 34. Rxd3 {[%clk 0:00:02]}  Rxd3 {[%clk 0:00:18]} 0-1


[Site "https://www.chess.com"]

[Event "Titled Tuesday Blitz November 29 Early 2022"]
[White "Gabrielian, Artur"]
[Black "Sadubayev, Airat"]
[WhiteFideId "4131002"]
[BlackFideId "13713264"]
[WhiteElo "2432"]
[BlackElo "2160"]
[Result "0-1"]
[Round "06"]
[TimeControl "180+1"]
[Date "2022.11.30"]
[WhiteClock "0:00:04"]
[BlackClock "0:00:06"]

1. e4 {[%clk 0:03:00]}  c6 {[%clk 0:02:59]} 2. d4 {[%clk 0:03:00]}  d5 {[%clk 0:03:00]} 3. e5 {[%clk 0:03:00]}  Bf5 {[%clk 0:03:00]} 4. h4 {[%clk 0:03:00]}  h5 {[%clk 0:02:59]} 5. Bd3 {[%clk 0:03:00]}  Bxd3 {[%clk 0:02:59]} 6. Qxd3 {[%clk 0:03:00]}  e6 {[%clk 0:02:59]} 7. Nf3 {[%clk 0:03:00]}  Ne7 {[%clk 0:02:43]} 8. Bg5 {[%clk 0:02:59]}  Qa5+ {[%clk 0:02:43]} 9. Nbd2 {[%clk 0:02:58]}  Nf5 {[%clk 0:02:43]} 10. O-O {[%clk 0:02:57]}  Be7 {[%clk 0:02:41]} 11. Bxe7 {[%clk 0:02:53]}  Nxe7 {[%clk 0:02:39]} 12. Ng5 {[%clk 0:02:50]}  Nf5 {[%clk 0:02:32]} 13. g3 {[%clk 0:02:47]}  Qa6 {[%clk 0:02:20]} 14. c4 {[%clk 0:02:44]}  Nd7 {[%clk 0:02:19]} 15. b3 {[%clk 0:02:37]}  Rd8 {[%clk 0:02:10]} 16. Qc3 {[%clk 0:02:21]}  O-O {[%clk 0:02:04]} 17. cxd5 {[%clk 0:01:57]}  cxd5 {[%clk 0:02:02]} 18. Rfc1 {[%clk 0:01:56]}  Nb8 {[%clk 0:01:55]} 19. Ndf3 {[%clk 0:01:41]}  Nc6 {[%clk 0:01:52]} 20. Qd2 {[%clk 0:01:39]}  Rc8 {[%clk 0:01:44]} 21. Rc3 {[%clk 0:01:31]}  Nce7 {[%clk 0:01:38]} 22. Rac1 {[%clk 0:01:30]}  Rc6 {[%clk 0:01:36]} 23. Rxc6 {[%clk 0:01:18]}  Nxc6 {[%clk 0:01:36]} 24. Rc5 {[%clk 0:01:12]}  Rc8 {[%clk 0:01:20]} 25. Qc3 {[%clk 0:01:10]}  Qxa2 {[%clk 0:01:15]} 26. b4 {[%clk 0:01:02]}  a6 {[%clk 0:01:11]} 27. Kg2 {[%clk 0:00:58]}  Qe2 {[%clk 0:00:59]} 28. Nh3 {[%clk 0:00:43]}  g6 {[%clk 0:00:53]} 29. Nf4 {[%clk 0:00:40]}  Qe4 {[%clk 0:00:51]} 30. Kg1 {[%clk 0:00:40]}  Rf8 {[%clk 0:00:45]} 31. Rxc6 {[%clk 0:00:36]}  bxc6 {[%clk 0:00:43]} 32. Nh3 {[%clk 0:00:27]}  Rc8 {[%clk 0:00:36]} 33. Nhg5 {[%clk 0:00:27]}  Qe2 {[%clk 0:00:36]} 34. Qc5 {[%clk 0:00:23]}  Qb5 {[%clk 0:00:31]} 35. Qa7 {[%clk 0:00:20]}  Rf8 {[%clk 0:00:24]} 36. Qd7 {[%clk 0:00:19]}  Qxb4 {[%clk 0:00:19]} 37. Nxe6 {[%clk 0:00:12]}  fxe6 {[%clk 0:00:19]} 38. Qxe6+ {[%clk 0:00:12]}  Kg7 {[%clk 0:00:19]} 39. Ng5 {[%clk 0:00:09]}  Qe7 {[%clk 0:00:15]} 40. Qxc6 {[%clk 0:00:09]}  Nxd4 {[%clk 0:00:13]} 41. Qxd5 {[%clk 0:00:09]}  Rd8 {[%clk 0:00:09]} 42. Qc4 {[%clk 0:00:09]}  a5 {[%clk 0:00:09]} 43. e6 {[%clk 0:00:08]}  a4 {[%clk 0:00:08]} 44. Qxa4 {[%clk 0:00:08]}  Nxe6 {[%clk 0:00:06]} 45. Qe4 {[%clk 0:00:08]}  Re8 {[%clk 0:00:05]} 46. Nf3 {[%clk 0:00:05]}  Qf6 {[%clk 0:00:05]} 47. Qb7+ {[%clk 0:00:05]}  Re7 {[%clk 0:00:05]} 48. Qa8 {[%clk 0:00:05]}  Nf8 {[%clk 0:00:06]} 49. Ng5 {[%clk 0:00:05]}  Ne6 {[%clk 0:00:06]} 50. Nf3 {[%clk 0:00:05]}  Rf7 {[%clk 0:00:07]} 51. Kg2 {[%clk 0:00:04]}  Nd4 {[%clk 0:00:06]} 0-1


[Site "https://www.chess.com"]

[Event "Titled Tuesday Blitz November 29 Early 2022"]
[White "Gatterer, Florian"]
[Black "Ronka, Erik"]
[WhiteFideId "811688"]
[BlackFideId "505080"]
[WhiteElo "2218"]
[BlackElo "2264"]
[Result "0-1"]
[Round "06"]
[TimeControl "180+1"]
[Date "2022.11.30"]
[WhiteClock "0:00:01"]
[BlackClock "0:00:10"]

1. c4 {[%clk 0:03:00]}  Nf6 {[%clk 0:02:59]} 2. Nf3 {[%clk 0:02:56]}  e6 {[%clk 0:02:56]} 3. Nc3 {[%clk 0:02:50]}  Bb4 {[%clk 0:02:53]} 4. Qc2 {[%clk 0:02:50]}  O-O {[%clk 0:02:51]} 5. a3 {[%clk 0:02:50]}  Bxc3 {[%clk 0:02:51]} 6. Qxc3 {[%clk 0:02:51]}  b6 {[%clk 0:02:50]} 7. e3 {[%clk 0:02:51]}  Bb7 {[%clk 0:02:50]} 8. b4 {[%clk 0:02:43]}  d6 {[%clk 0:02:50]} 9. Bb2 {[%clk 0:02:42]}  Nbd7 {[%clk 0:02:50]} 10. Be2 {[%clk 0:02:37]}  c5 {[%clk 0:02:50]} 11. O-O {[%clk 0:02:34]}  Rc8 {[%clk 0:02:50]} 12. Qb3 {[%clk 0:02:31]}  Qe7 {[%clk 0:02:49]} 13. d3 {[%clk 0:02:31]}  Rfd8 {[%clk 0:02:49]} 14. Rac1 {[%clk 0:02:29]}  h6 {[%clk 0:02:48]} 15. Rfd1 {[%clk 0:02:28]}  e5 {[%clk 0:02:45]} 16. e4 {[%clk 0:02:12]}  Nf8 {[%clk 0:02:41]} 17. g3 {[%clk 0:02:11]}  g6 {[%clk 0:02:39]} 18. Bf1 {[%clk 0:02:10]}  Ne6 {[%clk 0:02:38]} 19. Bh3 {[%clk 0:02:05]}  Bc6 {[%clk 0:02:36]} 20. Rf1 {[%clk 0:01:56]}  Rb8 {[%clk 0:02:33]} 21. b5 {[%clk 0:01:49]}  Bd7 {[%clk 0:02:33]} 22. Bg2 {[%clk 0:01:49]}  Ng5 {[%clk 0:02:30]} 23. Rce1 {[%clk 0:01:39]}  Nxf3+ {[%clk 0:02:24]} 24. Bxf3 {[%clk 0:01:40]}  Nh7 {[%clk 0:02:07]} 25. Bc1 {[%clk 0:01:35]}  Kg7 {[%clk 0:02:05]} 26. Bg2 {[%clk 0:01:34]}  Nf8 {[%clk 0:01:55]} 27. f4 {[%clk 0:01:34]}  f6 {[%clk 0:01:55]} 28. Qd1 {[%clk 0:01:29]}  Ne6 {[%clk 0:01:54]} 29. Qd2 {[%clk 0:01:26]}  g5 {[%clk 0:01:52]} 30. fxg5 {[%clk 0:01:06]}  fxg5 {[%clk 0:01:40]} 31. Rf2 {[%clk 0:01:06]}  Rf8 {[%clk 0:01:39]} 32. Ref1 {[%clk 0:01:06]}  Rxf2 {[%clk 0:01:39]} 33. Rxf2 {[%clk 0:01:06]}  Rf8 {[%clk 0:01:39]} 34. Bb2 {[%clk 0:01:00]}  Rxf2 {[%clk 0:01:38]} 35. Qxf2 {[%clk 0:01:00]}  Nf8 {[%clk 0:01:30]} 36. Qf1 {[%clk 0:00:57]}  Be6 {[%clk 0:01:29]} 37. Bh3 {[%clk 0:00:57]}  Qd7 {[%clk 0:01:27]} 38. Bxe6 {[%clk 0:00:56]}  Qxe6 {[%clk 0:01:28]} 39. Qf3 {[%clk 0:00:56]}  Ng6 {[%clk 0:01:27]} 40. Kg2 {[%clk 0:00:53]}  Nf8 {[%clk 0:01:27]} 41. Bc3 {[%clk 0:00:52]}  Nd7 {[%clk 0:01:27]} 42. Bd2 {[%clk 0:00:45]}  Nf6 {[%clk 0:01:26]} 43. Be3 {[%clk 0:00:41]}  Kg6 {[%clk 0:01:21]} 44. h3 {[%clk 0:00:41]}  h5 {[%clk 0:01:20]} 45. Bd2 {[%clk 0:00:40]}  Nd7 {[%clk 0:00:58]} 46. Qe3 {[%clk 0:00:36]}  Qf6 {[%clk 0:00:57]} 47. h4 {[%clk 0:00:30]}  gxh4 {[%clk 0:00:34]} 48. gxh4 {[%clk 0:00:29]}  Qxh4 {[%clk 0:00:17]} 49. Qh6+ {[%clk 0:00:28]}  Kf7 {[%clk 0:00:18]} 50. Bg5 {[%clk 0:00:29]}  Qg4+ {[%clk 0:00:18]} 51. Kf2 {[%clk 0:00:29]}  Nf8 {[%clk 0:00:16]} 52. Qf6+ {[%clk 0:00:27]}  Kg8 {[%clk 0:00:16]} 53. Bh6 {[%clk 0:00:16]}  Nd7 {[%clk 0:00:15]} 54. Qd8+ {[%clk 0:00:13]}  Kh7 {[%clk 0:00:15]} 55. Bf8 {[%clk 0:00:11]}  Qe6 {[%clk 0:00:14]} 56. Qe7+ {[%clk 0:00:05]}  Qxe7 {[%clk 0:00:13]} 57. Bxe7 {[%clk 0:00:05]}  Kg6 {[%clk 0:00:10]} 58. Bxd6 {[%clk 0:00:05]}  Kf6 {[%clk 0:00:10]} 59. Bc7 {[%clk 0:00:04]}  Ke6 {[%clk 0:00:10]} 60. Bd8 {[%clk 0:00:03]}  Nf8 {[%clk 0:00:09]} 61. Kf3 {[%clk 0:00:02]}  Ng6 {[%clk 0:00:10]} 62. Bc7 {[%clk 0:00:01]}  Kd7 {[%clk 0:00:10]} 0-1


[Site "https://www.chess.com"]

[Event "Titled Tuesday Blitz November 29 Early 2022"]
[White "Goltsev, Dmitry"]
[Black "Postnikov, Daniil"]
[WhiteFideId "24176710"]
[BlackFideId "4166329"]
[WhiteElo "2289"]
[BlackElo "2261"]
[Result "0-1"]
[Round "06"]
[TimeControl "180+1"]
[Date "2022.11.30"]
[WhiteClock "0:01:24"]
[BlackClock "0:02:17"]

1. e4 {[%clk 0:03:00]}  e6 {[%clk 0:02:59]} 2. d4 {[%clk 0:03:00]}  d5 {[%clk 0:03:00]} 3. exd5 {[%clk 0:03:01]}  exd5 {[%clk 0:03:00]} 4. Nf3 {[%clk 0:03:02]}  Nf6 {[%clk 0:03:01]} 5. Bd3 {[%clk 0:03:02]}  c5 {[%clk 0:03:00]} 6. O-O {[%clk 0:03:03]}  Be7 {[%clk 0:03:00]} 7. dxc5 {[%clk 0:03:03]}  Bxc5 {[%clk 0:03:01]} 8. Re1+ {[%clk 0:03:04]}  Be6 {[%clk 0:03:01]} 9. Nc3 {[%clk 0:03:03]}  O-O {[%clk 0:03:00]} 10. Be3 {[%clk 0:03:01]}  Bxe3 {[%clk 0:02:57]} 11. Rxe3 {[%clk 0:03:01]}  Nc6 {[%clk 0:02:58]} 12. Ne2 {[%clk 0:02:59]}  Ng4 {[%clk 0:02:56]} 13. Nf4 {[%clk 0:02:49]}  Nxe3 {[%clk 0:02:55]} 14. fxe3 {[%clk 0:02:50]}  Qb6 {[%clk 0:02:56]} 15. Qe1 {[%clk 0:02:48]}  Rae8 {[%clk 0:02:55]} 16. Qh4 {[%clk 0:02:40]}  h6 {[%clk 0:02:40]} 17. g4 {[%clk 0:02:27]}  Qxe3+ {[%clk 0:02:34]} 18. Kg2 {[%clk 0:02:16]}  Qxf4 {[%clk 0:02:34]} 19. h3 {[%clk 0:02:16]}  Nd4 {[%clk 0:02:32]} 20. Rf1 {[%clk 0:02:14]}  Nxf3 {[%clk 0:02:26]} 21. Rxf3 {[%clk 0:02:15]}  Qg5 {[%clk 0:02:25]} 22. Qf2 {[%clk 0:02:14]}  d4 {[%clk 0:02:25]} 23. Rf4 {[%clk 0:01:55]}  Bd5+ {[%clk 0:02:25]} 24. Kh2 {[%clk 0:01:53]}  Re3 {[%clk 0:02:21]} 25. h4 {[%clk 0:01:43]}  Qe5 {[%clk 0:02:20]} 26. Kg1 {[%clk 0:01:37]}  Rh3 {[%clk 0:02:17]} 27. Qxd4 {[%clk 0:01:27]}  Qe1+ {[%clk 0:02:16]} 28. Bf1 {[%clk 0:01:24]}  Rh1# {[%clk 0:02:17]} 0-1


[Site "https://www.chess.com"]

[Event "Titled Tuesday Blitz November 29 Early 2022"]
[White "Grapsa, Georgia"]
[Black "Kuznetsova, Olga"]
[WhiteFideId "4206436"]
[BlackFideId "4191323"]
[WhiteElo "1877"]
[BlackElo "2134"]
[Result "0-1"]
[Round "06"]
[TimeControl "180+1"]
[Date "2022.11.30"]
[WhiteClock "0:00:13"]
[BlackClock "0:00:21"]

1. e4 {[%clk 0:02:58]}  e6 {[%clk 0:02:57]} 2. b3 {[%clk 0:02:58]}  c5 {[%clk 0:02:56]} 3. Bb2 {[%clk 0:02:58]}  Nc6 {[%clk 0:02:55]} 4. Bb5 {[%clk 0:02:57]}  Nd4 {[%clk 0:02:55]} 5. Bd3 {[%clk 0:02:57]}  b6 {[%clk 0:02:52]} 6. Nf3 {[%clk 0:02:54]}  Nxf3+ {[%clk 0:02:50]} 7. Qxf3 {[%clk 0:02:55]}  Bb7 {[%clk 0:02:50]} 8. Nc3 {[%clk 0:02:53]}  Nf6 {[%clk 0:02:47]} 9. O-O-O {[%clk 0:02:48]}  d6 {[%clk 0:02:46]} 10. g4 {[%clk 0:02:46]}  e5 {[%clk 0:02:45]} 11. g5 {[%clk 0:02:42]}  Nd7 {[%clk 0:02:44]} 12. h4 {[%clk 0:02:43]}  a6 {[%clk 0:02:37]} 13. Bc4 {[%clk 0:02:33]}  Qe7 {[%clk 0:02:33]} 14. Nd5 {[%clk 0:02:30]}  Bxd5 {[%clk 0:02:33]} 15. Bxd5 {[%clk 0:02:31]}  Rb8 {[%clk 0:02:24]} 16. Kb1 {[%clk 0:02:03]}  f6 {[%clk 0:02:18]} 17. c3 {[%clk 0:02:00]}  b5 {[%clk 0:02:13]} 18. d4 {[%clk 0:01:58]}  Nb6 {[%clk 0:02:13]} 19. dxc5 {[%clk 0:01:57]}  dxc5 {[%clk 0:02:12]} 20. gxf6 {[%clk 0:01:51]}  Qxf6 {[%clk 0:02:11]} 21. Qg3 {[%clk 0:01:43]}  c4 {[%clk 0:02:01]} 22. Rhg1 {[%clk 0:01:33]}  Rd8 {[%clk 0:01:37]} 23. Qe3 {[%clk 0:01:28]}  Nxd5 {[%clk 0:01:32]} 24. exd5 {[%clk 0:01:27]}  Bd6 {[%clk 0:01:31]} 25. Qe4 {[%clk 0:01:01]}  O-O {[%clk 0:01:28]} 26. bxc4 {[%clk 0:00:57]}  bxc4 {[%clk 0:01:27]} 27. Qxc4 {[%clk 0:00:56]}  Rb8 {[%clk 0:01:27]} 28. Rd2 {[%clk 0:00:49]}  Rfc8 {[%clk 0:01:25]} 29. Qd3 {[%clk 0:00:42]}  Rb5 {[%clk 0:01:10]} 30. c4 {[%clk 0:00:37]}  Rb4 {[%clk 0:01:08]} 31. Rc1 {[%clk 0:00:32]}  Rcb8 {[%clk 0:01:04]} 32. Ka1 {[%clk 0:00:27]}  Bc5 {[%clk 0:00:32]} 33. Qe4 {[%clk 0:00:19]}  Rxb2 {[%clk 0:00:30]} 34. Rxb2 {[%clk 0:00:18]}  Bd4 {[%clk 0:00:30]} 35. Rc2 {[%clk 0:00:16]}  Rxb2 {[%clk 0:00:26]} 36. Rxb2 {[%clk 0:00:16]}  Qxf2 {[%clk 0:00:26]} 37. Qb1 {[%clk 0:00:12]}  Bc3 {[%clk 0:00:20]} 38. a3 {[%clk 0:00:11]}  Qd4 {[%clk 0:00:18]} 39. Ka2 {[%clk 0:00:11]}  Bxb2 {[%clk 0:00:18]} 40. Qxb2 {[%clk 0:00:12]}  Qxc4+ {[%clk 0:00:19]} 41. Qb3 {[%clk 0:00:13]}  Qxb3+ {[%clk 0:00:18]} 42. Kxb3 {[%clk 0:00:13]}  Kf8 {[%clk 0:00:19]} 43. Kc4 {[%clk 0:00:14]}  Ke7 {[%clk 0:00:20]} 44. Kd3 {[%clk 0:00:15]}  Kd6 {[%clk 0:00:20]} 45. Ke4 {[%clk 0:00:15]}  g6 {[%clk 0:00:20]} 46. a4 {[%clk 0:00:15]}  a5 {[%clk 0:00:21]} 47. h5 {[%clk 0:00:13]}  gxh5 {[%clk 0:00:21]} 0-1


[Site "https://www.chess.com"]